bitfinex-derivatives/quotes_ETHF0:USTF0_20260113
["timestamp","ask_amount","ask_price","bid_price","bid_amount"]
[1768267592834,3.52589326,3107.0,3105.9,0.00302755]
[1768267593140,0.99360106,3106.9,3105.9,0.00302755]
[1768267593336,0.99360106,3106.8,3105.9,0.00302755]
[1768267593538,3.52589326,3107.0,3105.9,0.00302755]
[1768267593738,4.52072558,3106.9,3105.9,0.00302755]
[1768267593937,4.52072558,3106.8,3105.9,0.00302755]
[1768267594139,3.52589326,3106.8,3105.9,0.00302755]
[1768267594743,4.33998369,3106.7,3105.9,0.00302755]
[1768267594939,0.99485506,3106.6,3105.9,0.00302755]
[1768267595148,4.33998369,3106.6,3105.4,0.99015291]
[1768267595442,3.34512863,3106.6,3105.4,0.99015291]
[1768267595744,4.33988713,3106.5,3105.4,0.99015291]
[1768267596039,3.34512863,3106.5,3105.4,0.99015291]
[1768267596243,3.34512863,3106.5,3105.4,0.99253316]
[1768267596641,3.34512863,3107.0,3105.7,0.82895291]
[1768267596843,0.99457173,3106.9,3105.7,0.82895291]
[1768267597144,0.99457173,3106.8,3105.7,0.82895291]
[1768267597338,0.99457173,3106.7,3105.7,0.82895291]
[1768267597545,0.99457173,3106.6,3105.7,0.82895291]
[1768267597738,3.34512863,3107.0,3105.7,0.82895291]
[1768267597937,4.33955097,3106.9,3105.7,0.82895291]
[1768267598239,0.99442234,3106.8,3105.7,0.82895291]
[1768267598545,0.99442234,3106.7,3105.7,0.82895291]
[1768267598745,0.99442234,3106.6,3105.7,0.82895291]
[1768267599038,3.34512863,3106.9,3105.7,0.82895291]
[1768267599246,0.99418827,3106.8,3105.7,0.82895291]
[1768267599437,0.99418827,3106.7,3105.7,0.82895291]
[1768267599643,0.99418827,3106.6,3105.6,0.82895291]
[1768267599838,3.34512863,3106.9,3105.6,0.82895291]
[1768267600040,0.99418829,3106.8,3105.6,0.82895291]
[1768267600342,3.34512863,3106.9,3105.6,0.82895291]
[1768267600343,0.99418829,3106.7,3105.6,0.82895291]
[1768267600539,0.99418829,3106.6,3105.6,0.82895291]
[1768267600740,3.34512863,3106.9,3105.6,0.82895291]
[1768267600940,4.33922304,3106.8,3105.6,0.82895291]
[1768267601140,0.99409441,3106.7,3105.6,0.82895291]
[1768267601343,0.99409441,3106.6,3105.4,0.99253316]
[1768267601647,3.34512863,3106.8,3105.4,0.99253316]
[1768267601845,3.34512863,3106.6,3105.4,0.99253316]
[1768267602237,0.9939236,3106.5,3105.4,0.99253316]
[1768267602437,3.34512863,3106.6,3105.4,0.99253316]
[1768267602737,3.30501545,3107.3,3105.4,0.00238025]
[1768267602738,3.34512863,3106.4,3105.4,0.00238025]
[1768267605035,3.34512863,3106.2,3104.2,0.16126]
[1768267605238,0.00381726,3107.3,3104.2,0.16126]
[1768267605239,3.34512863,3106.0,3104.2,3.59035241]
[1768267605442,4.17408154,3105.8,3104.2,3.42909241]
[1768267605647,3.34512863,3105.6,3104.2,3.42909241]
[1768267605840,3.34512863,3105.4,3103.7,0.82895291]
[1768267606146,0.99427715,3105.3,3104.1,0.82895291]
[1768267606346,0.99427715,3105.3,3104.1,4.25804532]
[1768267606547,3.50630863,3105.8,3104.1,4.25804532]
[1768267606746,0.99307775,3105.7,3104.1,4.25804532]
[1768267606951,0.99307782,3105.6,3104.1,4.25804532]
[1768267607146,0.99307782,3105.5,3104.1,3.42909241]
[1768267607347,0.99307782,3105.4,3104.3,0.82895291]
[1768267607549,3.50630863,3105.8,3104.3,0.82895291]
[1768267607748,4.33720918,3105.7,3104.2,0.82895291]
[1768267607951,4.33720918,3105.6,3104.2,0.82895291]
[1768267608143,0.99208055,3105.5,3104.1,3.42909241]
[1768267608341,0.99208055,3105.5,3104.1,4.25804532]
[1768267608541,4.33720918,3105.5,3104.1,3.42909241]
[1768267608740,0.99208055,3105.4,3104.1,3.42909241]
[1768267608944,3.34512863,3105.5,3104.1,3.42909241]
[1768267611650,3.34512863,3105.5,3104.0,2.03668747]
[1768267612154,3.34512863,3105.5,3104.0,1.20773456]
[1768267612353,3.34512863,3105.5,3104.2,0.82895291]
[1768267612849,3.34512863,3105.5,3104.0,4.63682697]
[1768267613052,3.34512863,3105.5,3104.0,2.03668747]
[1768267613352,0.83121387,3105.3,3104.3,0.83121387]
[1768267615551,3.50634863,3104.9,3103.2,4.26030628]
[1768267615849,1.82025039,3104.8,3103.6,0.83121387]
[1768267616057,0.83121387,3104.8,3103.8,0.83121387]
[1768267616444,0.83121387,3104.8,3104.0,0.83121387]
[1768267616445,0.00371201,3104.8,3104.0,0.83121387]
[1768267616647,0.83121387,3104.7,3103.8,0.83492477]
[1768267616854,0.83492588,3104.8,3103.8,0.83492477]
[1768267617149,0.00371201,3104.8,3103.8,0.0037109]
[1768267617351,0.83492588,3104.8,3103.8,0.0037109]
[1768267617552,0.00371201,3104.8,3103.8,0.0037109]
[1768267617856,0.83121387,3104.6,3103.8,0.0037109]
[1768267618254,0.00371201,3104.8,3103.8,0.0037109]
[1768267618455,0.83121387,3104.6,3103.8,0.0037109]
[1768267618760,0.83121387,3104.7,3103.8,0.0037109]
[1768267620652,0.00371201,3104.8,3103.8,0.0037109]
[1768267620858,0.00371201,3104.8,3103.8,0.83492477]
[1768267621161,0.83121387,3104.7,3103.8,0.0037109]
[1768267621354,0.83121387,3104.5,3103.8,0.0037109]
[1768267621553,0.83121387,3104.3,3103.8,0.0037109]
[1768267622059,0.83121387,3104.1,3103.1,4.26030628]
[1768267622258,0.83121387,3104.3,3103.3,0.83121387]
[1768267622659,0.83121387,3104.4,3103.3,0.83121387]
[1768267622860,0.83121387,3104.4,3103.4,0.83121387]
[1768267623051,0.83121387,3104.4,3103.4,0.83423925]
[1768267623254,0.83121387,3104.4,3103.4,0.00302538]
[1768267623454,0.83121387,3104.4,3103.4,0.83423925]
[1768267625262,0.00371201,3104.8,3103.7,0.83121387]
[1768267625557,0.00371201,3104.8,3103.9,0.83121387]
[1768267625958,0.00482827,3104.6,3103.7,3.46202613]
[1768267626159,0.00482827,3104.6,3104.0,0.83604214]
[1768267626757,0.00371201,3104.8,3104.0,0.83604214]
[1768267627671,0.00371201,3104.8,3104.0,0.00482827]
[1768267628061,0.83492588,3104.8,3104.0,0.00482827]
[1768267629258,0.83492588,3104.8,3102.4,3.46202613]
[1768267629259,1.66242774,3104.1,3102.4,3.46202613]
[1768267629455,3.6542647,3104.4,3102.8,0.83121387]
[1768267629456,0.83121387,3103.8,3102.8,0.83121387]
[1768267629656,0.83121387,3104.0,3102.8,0.83121387]
[1768267630056,0.83121387,3103.9,3102.8,0.83121387]
[1768267630262,0.83121387,3103.9,3102.8,0.83456393]
[1768267630766,6.8782647,3104.4,3102.8,0.83456393]
[1768267630767,0.83121387,3104.1,3103.0,0.83121387]
[1768267631161,0.99043995,3104.0,3103.0,0.83121387]
[1768267631370,0.83121387,3104.2,3103.0,0.83121387]
[1768267631669,0.99017674,3104.1,3103.0,0.83121387]
[1768267631963,3.6542647,3104.4,3103.0,0.83121387]
[1768267632167,0.83121387,3104.1,3103.0,0.83121387]
[1768267632367,0.99019545,3104.0,3103.0,0.83121387]
[1768267641373,0.83121387,3103.9,3103.0,0.83121387]
[1768267641563,0.99019545,3103.8,3102.8,0.83456393]
[1768267641763,0.99019545,3103.8,3102.8,0.00335006]
[1768267641971,0.83121387,3103.5,3102.8,0.00335006]
[1768267642175,3.52309636,3103.7,3101.5,3.54014643]
[1768267642381,0.83121387,3102.7,3101.1,3.70156643]
[1768267642668,0.99252134,3102.6,3101.6,4.3713603]
[1768267642868,0.99252134,3102.6,3101.8,4.3713603]
[1768267643075,2.53621387,3102.9,3101.8,4.3713603]
[1768267643367,0.99298777,3102.8,3101.8,4.37367353]
[1768267643670,0.99298777,3102.7,3101.8,4.37367353]
[1768267643874,0.99298777,3102.6,3101.8,4.37367353]
[1768267644077,0.83520565,3102.9,3101.8,4.37367353]
[1768267644270,0.83121387,3102.7,3101.8,3.54245966]
[1768267644466,0.00399178,3102.9,3101.8,3.54245966]
[1768267644666,0.83121387,3102.7,3101.8,3.54245966]
[1768267645270,0.83121387,3102.7,3101.8,4.37367353]
[1768267645863,0.83121387,3102.7,3101.8,0.8335271]
[1768267646174,0.00399178,3102.9,3101.8,0.00231323]
[1768267646383,1.82256733,3102.8,3101.8,0.00231323]
[1768267646568,0.99135346,3102.7,3101.8,0.00231323]
[1768267647068,0.83121387,3102.6,3101.8,0.00231323]
[1768267647274,0.83121387,3102.4,3101.8,0.00231323]
[1768267647471,0.83121387,3102.4,3101.4,0.83121387]
[1768267648178,0.83121387,3102.6,3101.6,0.83121387]
[1768267648477,0.83121387,3102.6,3101.6,0.83480458]
[1768267648971,0.83121387,3102.6,3101.6,0.00359071]
[1768267650178,0.83121387,3102.6,3101.7,0.83121387]
[1768267650374,0.83121387,3102.8,3101.7,0.83121387]
[1768267651078,0.83520565,3102.9,3101.9,0.83121387]
[1768267651272,0.99042786,3102.8,3101.9,0.83121387]
[1768267651480,0.83520565,3102.9,3101.9,0.83121387]
[1768267651781,0.9903909,3102.8,3101.9,0.83121387]
[1768267651981,0.83520565,3102.9,3101.9,0.83121387]
[1768267652281,0.9903908,3102.8,3101.9,0.83121387]
[1768267652482,0.83520565,3102.9,3101.9,0.83121387]
[1768267652779,0.9902443,3102.8,3101.9,0.83121387]
[1768267652982,0.83520565,3102.9,3101.9,0.83121387]
[1768267653169,0.99024464,3102.8,3101.9,0.83121387]
[1768267653373,0.83121387,3102.8,3101.9,0.83121387]
[1768267654070,0.83520565,3102.9,3101.9,0.83121387]
[1768267654377,0.9901622,3102.8,3101.9,0.83121387]
[1768267654583,0.83520565,3102.9,3101.9,0.83121387]
[1768267654788,0.9901191,3102.8,3101.9,0.83121387]
[1768267654985,0.83520565,3102.9,3101.6,3.54373714]
[1768267655283,0.99017458,3102.8,3101.8,0.83121387]
[1768267655483,0.83520565,3102.9,3101.8,0.83121387]
[1768267655684,0.99016682,3102.8,3101.8,4.16356585]
[1768267655885,0.83520565,3102.9,3101.8,4.16356585]
[1768267656085,0.99016682,3102.8,3102.0,0.83121387]
[1768267656275,0.83520565,3102.9,3102.0,0.83121387]
[1768267656481,0.99046655,3102.8,3102.0,0.83121387]
[1768267656784,0.83520565,3102.9,3102.0,0.83121387]
[1768267656984,0.9904664,3102.8,3102.0,0.83121387]
[1768267657282,0.99089587,3102.7,3102.0,0.83121387]
[1768267657483,0.83121387,3102.4,3100.8,3.33235198]
[1768267657675,2.69390796,3102.3,3101.1,4.16356585]
[1768267657875,0.99090796,3102.2,3101.1,4.16356585]
[1768267658184,0.83121387,3102.3,3101.3,4.16356585]
[1768267658486,0.0048362,3102.0,3101.3,4.1666708]
[1768267659188,0.0048362,3102.0,3101.3,3.33545693]
[1768267659482,0.0048362,3102.0,3101.3,3.34029313]
[1768267660287,0.83605007,3102.0,3101.3,3.34029313]
[1768267660587,0.0048362,3102.0,3101.3,3.34029313]
[1768267663082,0.00399178,3102.9,3101.7,4.16356585]
[1768267663290,0.99135153,3102.8,3101.9,4.16356585]
[1768267663590,0.00399178,3102.9,3101.9,4.16356585]
[1768267664382,0.83520565,3102.9,3101.9,4.16356585]
[1768267665694,0.00399178,3102.9,3101.9,4.16356585]
[1768267665894,0.83520565,3102.9,3101.9,4.16356585]
[1768267666089,0.00399178,3102.9,3102.2,3.33235198]
[1768267666791,0.00399178,3102.9,3102.3,0.83121387]
[1768267667094,0.83121387,3103.2,3102.3,0.83121387]
[1768267667291,0.99544745,3103.1,3102.2,3.33235198]
[1768267667487,0.99577132,3103.0,3102.2,3.33235198]
[1768267667693,0.83121387,3103.2,3102.2,3.33235198]
[1768267667893,0.99577127,3103.1,3102.2,3.33235198]
[1768267668193,0.99577127,3103.0,3102.2,3.33235198]
[1768267668384,0.00381719,3103.2,3102.2,3.33235198]
[1768267668581,0.99612149,3103.1,3102.5,4.16356585]
[1768267668792,0.00381719,3103.2,3102.5,4.16356585]
[1768267669097,0.99609393,3103.1,3102.5,4.16356585]
[1768267669287,0.00381719,3103.2,3102.5,4.16356585]
[1768267669488,0.16128,3103.8,3102.5,4.16356585]
[1768267669688,0.83121387,3103.5,3102.5,4.16356585]
[1768267669892,0.83121387,3103.7,3102.7,0.83121387]
[1768267670284,3.44027204,3103.5,3101.3,0.00310495]
[1768267670489,1.8623,3103.4,3101.4,3.33235198]
[1768267670683,0.1613,3103.4,3102.0,3.33235198]
[1768267671497,0.1613,3103.4,3102.1,4.16356585]
[1768267671796,0.1613,3103.4,3102.1,3.33235198]
[1768267671996,0.83121387,3103.1,3102.1,4.16356585]
[1768267672799,0.83121387,3103.3,3102.4,3.33235198]
[1768267674595,0.00285872,3103.5,3102.7,3.33235198]
[1768267676303,0.0048362,3103.4,3102.7,3.33235198]
[1768267677013,0.83217355,3104.1,3102.7,3.33718818]
[1768267677603,2.69341355,3104.5,3102.7,3.33718818]
[1768267677813,0.38641831,3104.4,3102.7,3.33718818]
[1768267678104,0.83217355,3103.8,3102.7,3.33718818]
[1768267678402,0.83217355,3103.9,3102.7,3.33718818]
[1768267681401,0.83217355,3104.3,3102.7,3.33718818]
[1768267681599,0.99136284,3104.2,3102.7,3.33718818]
[1768267681802,0.99136284,3104.1,3102.7,3.33718818]
[1768267682102,0.99136284,3104.0,3102.7,3.33718818]
[1768267682306,0.16353938,3104.5,3102.7,3.33718818]
[1768267682307,0.99571293,3104.5,3103.0,3.33235198]
[1768267682606,0.99097596,3104.4,3103.0,3.33235198]
[1768267682800,0.99097596,3104.3,3103.3,3.33235198]
[1768267683007,0.99097596,3104.2,3103.3,3.33235198]
[1768267683209,0.00229938,3104.5,3103.3,3.33235198]
[1768267683406,0.99059315,3104.4,3103.3,3.33235198]
[1768267683604,0.99059315,3104.3,3103.3,3.33235198]
[1768267683800,0.99059315,3104.2,3103.3,3.33235198]
[1768267684000,0.00229938,3104.5,3103.3,3.33235198]
[1768267684202,0.99058303,3104.4,3103.3,3.33235198]
[1768267684508,0.99058303,3104.3,3103.3,3.33235198]
[1768267684809,0.99058303,3104.2,3103.3,3.33235198]
[1768267685007,0.00229938,3104.5,3103.3,3.33235198]
[1768267685196,0.99022079,3104.4,3103.3,3.33235198]
[1768267685400,0.99022079,3104.3,3103.3,3.33235198]
[1768267685605,0.99022079,3104.2,3103.3,3.33235198]
[1768267685804,0.00229938,3104.5,3103.3,3.33235198]
[1768267686108,0.98992117,3104.4,3103.3,3.33235198]
[1768267686296,0.98992117,3104.3,3103.3,3.33235198]
[1768267686500,0.00229938,3104.5,3103.3,3.33235198]
[1768267686701,0.989667,3104.4,3103.3,3.33235198]
[1768267686901,0.00229938,3104.5,3103.3,3.33235198]
[1768267687098,0.98961357,3104.4,3103.3,3.33235198]
[1768267687412,0.00229938,3104.5,3103.3,3.33235198]
[1768267687614,0.98937535,3104.4,3103.3,3.33235198]
[1768267687803,0.00229938,3104.5,3103.3,3.33235198]
[1768267688107,0.98937224,3104.4,3103.3,3.33235198]
[1768267688301,0.00229938,3104.5,3103.3,3.33235198]
[1768267688502,0.98944527,3104.4,3103.3,3.33235198]
[1768267688698,0.00229938,3104.5,3103.3,3.33235198]
[1768267688911,0.98943912,3104.4,3103.3,3.33235198]
[1768267689110,0.00229938,3104.5,3103.3,3.33235198]
[1768267689313,0.98943912,3104.4,3103.3,3.33235198]
[1768267689511,0.00229938,3104.5,3103.3,3.33235198]
[1768267691408,0.00229938,3104.5,3103.6,3.36510625]
[1768267691607,0.00229938,3104.5,3103.6,3.36843113]
[1768267692604,0.99338355,3105.1,3103.6,3.36843113]
[1768267692808,0.99031602,3105.0,3103.6,3.36843113]
[1768267693009,0.99031602,3104.9,3103.6,3.36843113]
[1768267693207,0.99031602,3104.8,3103.6,3.36843113]
[1768267693419,0.99338355,3105.1,3103.6,3.36843113]
[1768267693604,0.99039054,3105.0,3103.6,3.36843113]
[1768267693800,0.99039054,3104.9,3103.6,3.36843113]
[1768267694006,0.99039054,3104.8,3103.6,3.36843113]
[1768267694205,0.99739878,3105.1,3103.6,3.36843113]
[1768267694411,0.98840598,3105.0,3103.6,3.36843113]
[1768267694716,0.98840598,3104.9,3103.6,3.36843113]
[1768267694908,0.98840598,3104.8,3103.6,3.36843113]
[1768267695106,0.99739878,3105.1,3103.6,3.36843113]
[1768267695309,0.98829423,3105.0,3103.6,3.36843113]
[1768267695515,0.98829423,3104.9,3103.6,3.36843113]
[1768267695715,0.98829423,3104.8,3103.6,3.36843113]
[1768267695917,0.99739878,3105.1,3103.6,3.36843113]
[1768267696211,0.98844711,3105.0,3103.6,3.36843113]
[1768267696416,0.98844711,3104.9,3103.6,3.36843113]
[1768267696613,0.99739878,3105.1,3103.9,3.59655502]
[1768267696614,0.00401523,3105.1,3103.9,3.59655502]
[1768267698114,0.83618878,3105.1,3103.9,3.59655502]
[1768267698314,0.9882449,3105.0,3103.9,3.59655502]
[1768267698515,0.83618878,3105.1,3103.9,3.59655502]
[1768267698705,0.98839575,3105.0,3103.9,3.59655502]
[1768267698902,0.83618878,3105.1,3103.9,3.59655502]
[1768267699108,0.98839503,3105.0,3103.9,3.59655502]
[1768267699406,0.83618878,3105.1,3103.9,3.59655502]
[1768267699606,0.98839386,3105.0,3103.9,3.59655502]
[1768267699809,0.83618878,3105.1,3103.9,3.59655502]
[1768267700007,0.98839079,3105.0,3103.9,3.59655502]
[1768267700207,0.83618878,3105.1,3103.9,3.59655502]
[1768267700515,1.82056237,3105.0,3103.9,3.59655502]
[1768267700715,0.83217355,3105.0,3103.9,3.59655502]
[1768267702418,0.98891289,3104.9,3103.9,3.59655502]
[1768267702610,0.83217355,3105.0,3103.9,3.59655502]
[1768267702915,0.9889145,3104.9,3103.9,3.59655502]
[1768267703107,0.83217355,3105.0,3103.9,3.59655502]
[1768267703309,0.9889145,3104.9,3103.9,3.59655502]
[1768267703508,0.83217355,3105.0,3103.9,3.59655502]
[1768267703713,0.9892694,3104.9,3103.9,3.59655502]
[1768267704017,0.83217355,3105.0,3103.9,3.59655502]
[1768267704212,0.00401523,3105.1,3103.9,3.59655502]
[1768267704408,0.98969308,3105.0,3103.9,3.59655502]
[1768267704609,0.98969308,3104.9,3103.9,3.59655502]
[1768267704815,0.00401523,3105.1,3103.9,3.59655502]
[1768267705005,0.98966764,3105.0,3103.9,4.42872857]
[1768267705207,0.00401523,3105.1,3103.9,4.42872857]
[1768267706413,0.99010334,3105.0,3103.9,4.42872857]
[1768267706619,0.00401523,3105.1,3103.9,4.42872857]
[1768267711420,0.00401523,3105.1,3103.6,3.5998799]
[1768267711625,0.83217355,3104.8,3103.6,3.5998799]
[1768267711925,0.99050102,3104.7,3103.6,3.5998799]
[1768267713023,0.99050102,3104.6,3103.6,3.5998799]
[1768267713220,0.99103853,3104.5,3103.6,3.5998799]
[1768267713420,0.00401523,3105.1,3103.6,3.5998799]
[1768267713619,1.82321202,3105.0,3103.6,3.5998799]
[1768267713826,0.99103847,3104.9,3103.6,3.5998799]
[1768267718125,0.99103847,3104.8,3103.6,3.5998799]
[1768267718326,0.99103847,3104.7,3103.6,3.5998799]
[1768267718629,0.99103847,3104.6,3103.6,3.5998799]
[1768267718829,0.99103847,3104.5,3103.6,3.5998799]
[1768267719035,0.00401523,3105.1,3103.6,3.5998799]
[1768267719332,0.99181953,3105.0,3103.6,3.5998799]
[1768267719520,0.99181953,3104.9,3103.6,3.5998799]
[1768267719826,0.00401523,3105.1,3103.6,3.5998799]
[1768267719827,0.99181953,3104.8,3103.6,3.5998799]
[1768267720025,0.99181953,3104.7,3103.8,3.45994781]
[1768267720328,0.00401523,3105.1,3103.8,3.45994781]
[1768267720630,0.00401523,3105.1,3104.0,4.29212136]
[1768267723928,0.00401523,3105.1,3104.2,3.45994781]
[1768267724822,0.00401523,3105.1,3104.4,3.45994781]
[1768267728135,0.83217355,3105.6,3104.4,3.45994781]
[1768267728928,0.83481643,3105.6,3104.4,3.45994781]
[1768267731836,0.00264288,3105.6,3104.4,3.45994781]
[1768267732027,0.83481643,3105.6,3104.4,3.45994781]
[1768267732229,0.9859911,3105.5,3104.4,3.45994781]
[1768267732527,0.9859911,3105.4,3104.4,3.45994781]
[1768267732728,0.9859911,3105.3,3104.4,3.45994781]
[1768267733026,0.9859911,3105.2,3104.4,3.45994781]
[1768267733228,0.9859911,3105.1,3104.4,3.45994781]
[1768267733429,0.83481643,3105.6,3104.4,3.45994781]
[1768267733631,0.98598568,3105.5,3104.4,3.45994781]
[1768267733827,0.98598568,3105.4,3104.4,3.45994781]
[1768267734132,0.98598568,3105.3,3104.4,3.45994781]
[1768267734334,0.98598568,3105.2,3104.4,3.45994781]
[1768267734531,0.98598568,3105.1,3104.4,3.45994781]
[1768267734734,0.83481643,3105.6,3104.4,3.45994781]
[1768267735038,0.98597979,3105.5,3104.4,3.45994781]
[1768267735241,0.98597979,3105.4,3104.4,3.45994781]
[1768267735432,0.98597979,3105.3,3104.4,3.45994781]
[1768267735633,0.98597979,3105.2,3104.4,3.45994781]
[1768267735837,0.98597979,3105.1,3104.4,3.45994781]
[1768267736037,0.83481643,3105.6,3104.4,3.45994781]
[1768267736238,0.98596194,3105.5,3104.4,3.45994781]
[1768267736437,0.98596194,3105.4,3104.4,3.45994781]
[1768267736631,0.98596194,3105.3,3104.4,3.45994781]
[1768267736828,0.98596194,3105.2,3104.4,3.45994781]
[1768267737032,0.98596194,3105.1,3104.4,3.45994781]
[1768267737244,0.83481643,3105.6,3104.4,3.45994781]
[1768267737542,0.83117992,3105.3,3104.4,3.45994781]
[1768267737732,0.98594328,3105.2,3104.4,3.45994781]
[1768267737931,0.98594328,3105.1,3104.4,3.45994781]
[1768267738133,0.83117992,3105.3,3104.4,3.45994781]
[1768267738339,0.98594108,3105.2,3104.4,3.45994781]
[1768267738533,0.98594108,3105.1,3104.4,3.45994781]
[1768267738734,0.83117992,3105.3,3104.4,3.45994781]
[1768267738934,0.985941,3105.2,3104.4,3.45994781]
[1768267739232,0.985941,3105.1,3104.4,3.45994781]
[1768267739434,0.83117992,3105.3,3104.4,3.45994781]
[1768267739634,0.98594171,3105.2,3104.4,3.45994781]
[1768267739837,0.98594171,3105.1,3104.4,3.45994781]
[1768267740039,0.83117992,3105.3,3104.4,3.45994781]
[1768267740240,0.98594156,3105.2,3104.4,3.45994781]
[1768267740540,0.98594156,3105.1,3104.4,3.45994781]
[1768267740741,0.83117992,3105.3,3104.4,3.45994781]
[1768267741040,0.98591914,3105.2,3104.4,3.45994781]
[1768267741241,0.83117992,3105.3,3104.4,3.45994781]
[1768267741242,0.98591914,3105.1,3104.4,3.45994781]
[1768267741438,0.83117992,3105.3,3104.4,3.45994781]
[1768267741739,0.98591768,3105.2,3104.4,3.45994781]
[1768267741942,0.98591768,3105.1,3104.4,3.45994781]
[1768267742135,0.83117992,3105.3,3104.4,3.45994781]
[1768267742338,0.98603215,3105.2,3104.4,3.45994781]
[1768267742639,0.98603215,3105.1,3104.4,3.45994781]
[1768267742830,0.00264288,3105.6,3104.4,3.45994781]
[1768267743031,0.83117992,3105.2,3104.4,3.45994781]
[1768267743341,0.98603182,3105.1,3104.4,3.45994781]
[1768267743739,0.83117992,3104.6,3104.3,0.0048362]
[1768267743936,3.56582271,3105.6,3104.3,0.0048362]
[1768267744143,0.83117992,3105.2,3104.3,3.46478401]
[1768267744347,0.98620434,3105.1,3104.3,3.46478401]
[1768267746257,0.98620434,3105.1,3104.3,4.29596393]
[1768267746450,0.83117992,3105.3,3104.3,4.29596393]
[1768267748557,0.83117992,3105.1,3104.3,3.46478401]
[1768267748759,0.83117992,3104.9,3104.4,4.83523013]
[1768267748955,0.83117992,3104.9,3104.4,3.52723013]
[1768267750459,0.83117992,3105.1,3104.4,3.52723013]
[1768267750865,0.83117992,3104.6,3104.3,0.0048362]
[1768267751461,0.83117992,3104.8,3104.3,0.0048362]
[1768267755964,3.82044658,3105.6,3104.3,0.0048362]
[1768267756167,0.83117992,3104.9,3104.3,0.0048362]
[1768267759368,0.83117992,3104.4,3103.1,3.6052259]
[1768267759567,0.83117992,3103.9,3102.8,4.43640582]
[1768267759866,0.83117992,3104.3,3103.2,0.83117992]
[1768267760057,0.98280157,3104.2,3103.2,4.43640582]
[1768267760258,0.83117992,3104.3,3103.2,4.43640582]
[1768267760466,0.98170694,3104.2,3103.2,4.43943089]
[1768267760665,0.83117992,3104.3,3103.2,4.43943089]
[1768267760862,0.83117992,3103.9,3103.2,3.60825097]
[1768267761256,0.83117992,3103.8,3103.2,0.00302507]
[1768267763570,0.83117992,3104.0,3103.2,0.00302507]
[1768267769476,4.43374218,3104.5,3103.2,0.00302507]
[1768267769663,0.83117992,3104.0,3103.2,0.00302507]
[1768267774082,0.0048362,3104.2,3103.2,0.00302507]
[1768267774283,0.83117992,3104.0,3103.2,0.00302507]
[1768267775176,0.0048362,3104.2,3103.2,0.00302507]
[1768267775376,0.83117992,3104.0,3103.2,0.00302507]
[1768267781891,0.83117992,3104.1,3103.2,0.00302507]
[1768267784986,0.0048362,3104.2,3103.2,0.00302507]
[1768267785289,0.83601612,3104.2,3103.2,0.00302507]
[1768267787201,0.98014715,3104.1,3103.2,0.00302507]
[1768267787394,0.83601612,3104.2,3103.2,0.00302507]
[1768267787695,0.98014715,3104.1,3103.2,0.00302507]
[1768267787887,0.83601612,3104.2,3103.2,0.00302507]
[1768267788084,0.98014715,3104.1,3103.2,0.00302507]
[1768267788286,0.83601612,3104.2,3103.2,0.00302507]
[1768267788487,0.98081521,3104.1,3103.2,0.00302507]
[1768267788693,0.83601612,3104.2,3103.2,0.00302507]
[1768267788890,0.98079181,3104.1,3103.2,0.00302507]
[1768267789095,0.0048362,3104.2,3103.5,0.83117992]
[1768267789396,0.98206462,3104.1,3103.5,0.83117992]
[1768267789697,0.0048362,3104.2,3103.5,0.83117992]
[1768267789894,0.98206429,3104.1,3103.5,0.83117992]
[1768267790094,0.0048362,3104.2,3103.5,0.83117992]
[1768267790395,0.98206444,3104.1,3103.5,0.83117992]
[1768267790587,0.0048362,3104.2,3103.5,0.83117992]
[1768267790788,0.98203192,3104.1,3103.5,0.83117992]
[1768267791093,0.0048362,3104.2,3103.5,0.83117992]
[1768267791293,0.98195782,3104.1,3103.5,0.83117992]
[1768267791495,0.0048362,3104.2,3103.5,0.83117992]
[1768267791795,0.98195762,3104.1,3103.5,0.83117992]
[1768267792093,0.0048362,3104.2,3103.5,0.83117992]
[1768267792294,0.98195762,3104.1,3103.5,0.83117992]
[1768267792593,0.0048362,3104.2,3103.5,0.83117992]
[1768267792794,0.9818962,3104.1,3103.5,0.83117992]
[1768267792995,0.0048362,3104.2,3103.5,0.83117992]
[1768267793192,0.9818962,3104.1,3103.5,0.83117992]
[1768267793397,0.0048362,3104.2,3103.5,0.83117992]
[1768267793597,0.98184674,3104.1,3103.5,0.83117992]
[1768267793800,0.0048362,3104.2,3103.5,0.83117992]
[1768267794097,0.98184674,3104.1,3103.2,0.00302507]
[1768267794297,0.0048362,3104.2,3103.3,0.83117992]
[1768267794496,0.98180897,3104.1,3103.3,0.83117992]
[1768267794797,0.0048362,3104.2,3103.3,0.83117992]
[1768267794997,0.98181628,3104.1,3103.3,0.83117992]
[1768267795198,0.0048362,3104.2,3103.3,0.83117992]
[1768267795400,0.9817907,3104.1,3103.3,0.83117992]
[1768267795594,0.0048362,3104.2,3103.3,0.83117992]
[1768267795800,0.98179379,3104.1,3103.3,0.83117992]
[1768267796001,0.0048362,3104.2,3103.3,0.83117992]
[1768267796196,0.98179354,3104.1,3103.3,0.83117992]
[1768267796396,0.0048362,3104.2,3103.3,0.83117992]
[1768267796598,0.98177481,3104.1,3103.3,0.83117992]
[1768267796798,0.0048362,3104.2,3103.3,0.83117992]
[1768267796992,0.98177481,3104.1,3103.3,0.83117992]
[1768267797299,0.0048362,3104.2,3103.2,1.31502507]
[1768267797594,0.98176966,3104.1,3103.2,1.31502507]
[1768267797797,0.0048362,3104.2,3103.2,1.31502507]
[1768267797992,0.98176674,3104.1,3103.2,1.31502507]
[1768267798194,3.54953159,3104.2,3103.2,0.00302507]
[1768267798398,0.98177096,3104.1,3103.2,0.00302507]
[1768267798598,0.98183793,3104.0,3103.2,0.00302507]
[1768267798798,3.54953159,3104.2,3103.2,0.00302507]
[1768267798999,0.9818378,3104.1,3103.2,0.00302507]
[1768267799205,0.9818378,3104.0,3103.2,0.00302507]
[1768267799407,3.54953159,3104.2,3103.2,0.00302507]
[1768267799705,0.98186168,3104.1,3103.2,0.00302507]
[1768267799904,0.98186168,3104.0,3103.2,0.00302507]
[1768267800203,3.54953159,3104.2,3103.2,0.00302507]
[1768267800408,0.98186694,3104.1,3103.2,0.00302507]
[1768267800603,0.98186694,3104.0,3103.2,0.00302507]
[1768267801002,0.98186694,3103.9,3103.2,0.00302507]
[1768267801195,3.54953159,3104.2,3103.2,0.00302507]
[1768267801401,0.98186972,3104.1,3103.2,0.00302507]
[1768267801601,0.98186972,3104.0,3103.2,0.00302507]
[1768267801801,0.98186972,3103.9,3103.2,0.00302507]
[1768267802006,3.54953159,3104.2,3103.2,0.00302507]
[1768267802208,0.98186924,3104.1,3103.2,0.00302507]
[1768267802407,0.98186924,3104.0,3103.2,0.00302507]
[1768267802604,0.98186924,3103.9,3103.2,0.00302507]
[1768267802805,3.54953159,3104.2,3103.2,0.00302507]
[1768267803011,0.98186333,3104.1,3103.2,0.00302507]
[1768267803205,0.98186333,3104.0,3103.2,0.00302507]
[1768267803402,0.98186333,3103.9,3103.2,0.00302507]
[1768267803601,3.54953159,3104.2,3103.2,0.00302507]
[1768267803801,0.98185782,3104.1,3103.2,0.00302507]
[1768267804107,0.98185782,3104.0,3103.2,0.00302507]
[1768267804306,0.98185782,3103.9,3103.2,0.00302507]
[1768267804497,3.54953159,3104.2,3103.2,0.00302507]
[1768267804700,0.98185751,3104.1,3103.2,0.00302507]